[Event "Live Chess"]
[Site "Chess.com"]
[Date "2024.06.02"]
[Round "-"]
[White "Duke_of_Bebington"]
[Black "Dhaydon19"]
[Result "0-1"]
[WhiteElo "1657"]
[BlackElo "2673"]
[TimeControl "300"]
[EndTime "21:15:57 PDT"]
[Termination "Dhaydon19 won by resignation"]

1. e4 {[%clk 0:04:58]} 1... c6 {[%clk 0:04:58.3]} 2. d4 {[%clk 0:04:56.4]} 2...
d5 {[%clk 0:04:57.9]} 3. e5 {[%clk 0:04:55.5]} 3... c5 {[%clk 0:04:56.9]} 4. c3
{[%clk 0:04:54.1]} 4... cxd4 {[%clk 0:04:55.6]} 5. cxd4 {[%clk 0:04:53.5]} 5...
Nc6 {[%clk 0:04:55.3]} 6. Nc3 {[%clk 0:04:45.7]} 6... e6 {[%clk 0:04:53.2]} 7.
Nf3 {[%clk 0:04:39]} 7... Nge7 {[%clk 0:04:50.4]} 8. Bd3 {[%clk 0:04:37.1]} 8...
h6 {[%clk 0:04:49.6]} 9. O-O {[%clk 0:04:35.2]} 9... Nf5 {[%clk 0:04:48.5]} 10.
Bxf5 {[%clk 0:04:30.9]} 10... exf5 {[%clk 0:04:47.3]} 11. h4 {[%clk 0:04:20.8]}
11... Be6 {[%clk 0:04:45.9]} 12. a3 {[%clk 0:04:12.9]} 12... Rc8 {[%clk
0:04:42]} 13. Re1 {[%clk 0:04:00.9]} 13... Be7 {[%clk 0:04:40.5]} 14. g3 {[%clk
0:03:59]} 14... g5 {[%clk 0:04:39.1]} 15. hxg5 {[%clk 0:03:57.6]} 15... hxg5
{[%clk 0:04:38.4]} 16. Kg2 {[%clk 0:03:53.8]} 16... g4 {[%clk 0:04:37.2]} 17.
Nh2 {[%clk 0:03:51.9]} 17... Bg5 {[%clk 0:04:31.8]} 18. Rh1 {[%clk 0:03:41.1]}
18... Rh3 {[%clk 0:04:25.4]} 19. Ne2 {[%clk 0:03:24.9]} 19... Bxc1 {[%clk
0:04:08]} 20. Rxc1 {[%clk 0:03:22.8]} 20... Kd7 {[%clk 0:04:04.3]} 21. Qd2
{[%clk 0:03:14.6]} 21... Qb6 {[%clk 0:03:58.4]} 22. b4 {[%clk 0:03:03.3]} 22...
Ne7 {[%clk 0:03:51.4]} 23. Nf4 {[%clk 0:02:57.1]} 23... Rhh8 {[%clk 0:03:46.3]}
24. f3 {[%clk 0:02:41.7]} 24... gxf3+ {[%clk 0:03:28.7]} 25. Nxf3 {[%clk
0:02:41.6]} 25... Rxh1 {[%clk 0:03:26.7]} 26. Kxh1 {[%clk 0:02:37.1]} 26...
Rxc1+ {[%clk 0:03:23.6]} 27. Qxc1 {[%clk 0:02:35.3]} 27... Qa6 {[%clk
0:03:22.9]} 28. Kg2 {[%clk 0:02:22.2]} 28... Nc6 {[%clk 0:03:16.9]} 29. Qc3
{[%clk 0:01:59.9]} 29... Qb5 {[%clk 0:03:11.2]} 30. Nd3 {[%clk 0:01:52.5]} 30...
b6 {[%clk 0:03:07.8]} 31. Qb3 {[%clk 0:01:47.5]} 31... Qc4 {[%clk 0:03:01.8]}
32. Qxc4 {[%clk 0:01:38.8]} 32... dxc4 {[%clk 0:03:00.7]} 33. Nde1 {[%clk
0:01:30.8]} 33... Bd5 {[%clk 0:02:57.9]} 34. Nc2 {[%clk 0:01:27.8]} 34... Be4
{[%clk 0:02:56.2]} 35. Ne1 {[%clk 0:01:17.9]} 35... Nxd4 {[%clk 0:02:54.1]} 36.
Kf2 {[%clk 0:01:16.7]} 36... Nxf3 {[%clk 0:02:53]} 37. Nxf3 {[%clk 0:01:15.1]}
37... Bxf3 {[%clk 0:02:52.2]} 38. Kxf3 {[%clk 0:01:14.5]} 38... Ke6 {[%clk
0:02:50.9]} 39. Kf4 {[%clk 0:01:13.1]} 39... b5 {[%clk 0:02:49.9]} 40. Ke3
{[%clk 0:01:07.7]} 40... Kxe5 {[%clk 0:02:48.5]} 41. Kd2 {[%clk 0:01:07.3]}
41... f4 {[%clk 0:02:47.3]} 42. Kc3 {[%clk 0:01:07.2]} 42... fxg3 {[%clk
0:02:46.1]} 0-1

[Event "Live Chess"]
[Site "Chess.com"]
[Date "2024.06.02"]
[Round "-"]
[White "KGreenGator"]
[Black "McFim"]
[Result "1-0"]
[WhiteElo "1786"]
[BlackElo "1645"]
[TimeControl "300"]
[EndTime "21:16:44 PDT"]
[Termination "KGreenGator won on time"]

1. c4 {[%clk 0:04:57.8]} 1... Nf6 {[%clk 0:04:57.4]} 2. Nc3 {[%clk 0:04:57.4]}
2... c6 {[%clk 0:04:55.7]} 3. e3 {[%clk 0:04:57.3]} 3... d6 {[%clk 0:04:54.5]}
4. d4 {[%clk 0:04:57.2]} 4... g6 {[%clk 0:04:53.1]} 5. Nf3 {[%clk 0:04:57.1]}
5... Bg7 {[%clk 0:04:51.8]} 6. Bd3 {[%clk 0:04:56.2]} 6... O-O {[%clk
0:04:50.1]} 7. O-O {[%clk 0:04:56.1]} 7... Qc7 {[%clk 0:04:48.3]} 8. Re1 {[%clk
0:04:56]} 8... e5 {[%clk 0:04:46.7]} 9. d5 {[%clk 0:04:54.2]} 9... c5 {[%clk
0:04:41.4]} 10. e4 {[%clk 0:04:53.5]} 10... Bd7 {[%clk 0:04:37.6]} 11. a3 {[%clk
0:04:51.6]} 11... b6 {[%clk 0:04:29.6]} 12. b4 {[%clk 0:04:50.4]} 12... a5
{[%clk 0:04:26.3]} 13. b5 {[%clk 0:04:48.6]} 13... Bc8 {[%clk 0:04:22.8]} 14. a4
{[%clk 0:04:44.8]} 14... Bb7 {[%clk 0:04:18.3]} 15. h3 {[%clk 0:04:42.6]} 15...
h6 {[%clk 0:04:16.7]} 16. Nh2 {[%clk 0:04:41.1]} 16... Nbd7 {[%clk 0:04:13.2]}
17. Ng4 {[%clk 0:04:39.5]} 17... Nxg4 {[%clk 0:04:09.2]} 18. Qxg4 {[%clk
0:04:37.2]} 18... Rae8 {[%clk 0:04:08.5]} 19. Qh4 {[%clk 0:04:36.3]} 19... g5
{[%clk 0:04:03.5]} 20. Qg4 {[%clk 0:04:33.9]} 20... Nf6 {[%clk 0:04:00.5]} 21.
Qf3 {[%clk 0:04:29.1]} 21... Nh7 {[%clk 0:03:58.6]} 22. Ne2 {[%clk 0:04:24]}
22... Bc8 {[%clk 0:03:55]} 23. Ng3 {[%clk 0:04:22.7]} 23... Nf6 {[%clk
0:03:43.2]} 24. Nf5 {[%clk 0:04:19.7]} 24... Bxf5 {[%clk 0:03:36.7]} 25. Qxf5
{[%clk 0:04:17.6]} 25... Qd7 {[%clk 0:03:33.5]} 26. Qxd7 {[%clk 0:04:09.4]}
26... Nxd7 {[%clk 0:03:31.1]} 27. Rb1 {[%clk 0:04:07.4]} 27... Re7 {[%clk
0:03:24.2]} 28. g3 {[%clk 0:04:05.4]} 28... Rd8 {[%clk 0:03:21.4]} 29. Kg2
{[%clk 0:04:03.9]} 29... Nf8 {[%clk 0:03:20]} 30. f4 {[%clk 0:04:00]} 30... f6
{[%clk 0:03:18.3]} 31. fxg5 {[%clk 0:03:56.9]} 31... fxg5 {[%clk 0:03:16.5]} 32.
Rf1 {[%clk 0:03:54.8]} 32... Nd7 {[%clk 0:03:12.4]} 33. Rf5 {[%clk 0:03:52.7]}
33... Rf8 {[%clk 0:03:08.3]} 34. g4 {[%clk 0:03:48.8]} 34... Ref7 {[%clk
0:03:00.2]} 35. Kg3 {[%clk 0:03:46.8]} 35... Kh7 {[%clk 0:02:55.7]} 36. Bd2
{[%clk 0:03:44.7]} 36... Kg6 {[%clk 0:02:53.2]} 37. Rbf1 {[%clk 0:03:43.3]}
37... Bf6 {[%clk 0:02:50.7]} 38. Be1 {[%clk 0:03:29.7]} 38... Be7 {[%clk
0:02:42.5]} 39. h4 {[%clk 0:03:27.7]} 39... gxh4+ {[%clk 0:02:38.5]} 40. Kh3
{[%clk 0:03:26.7]} 40... Bg5 {[%clk 0:02:31.3]} 41. Bxh4 {[%clk 0:03:24.1]}
41... Rxf5 {[%clk 0:02:08.9]} 42. gxf5+ {[%clk 0:03:19]} 42... Kf6 {[%clk
0:02:02.3]} 43. Be2 {[%clk 0:03:15.3]} 43... Rg8 {[%clk 0:01:56.3]} 44. Rg1
{[%clk 0:03:12.6]} 44... Rg7 {[%clk 0:01:54.4]} 45. Bxg5+ {[%clk 0:03:10.5]}
45... hxg5 {[%clk 0:01:44.7]} 46. Bh5 {[%clk 0:03:07.7]} 46... Rh7 {[%clk
0:01:40]} 47. Kg4 {[%clk 0:03:05.4]} 47... Rh6 {[%clk 0:01:37.3]} 48. Bg6 {[%clk
0:03:01.1]} 48... Nf8 {[%clk 0:01:34.4]} 49. Be8 {[%clk 0:02:57.9]} 49... Rh4+
{[%clk 0:01:30.8]} 50. Kf3 {[%clk 0:02:56.4]} 50... Nh7 {[%clk 0:01:21.9]} 51.
Rg4 {[%clk 0:02:51.5]} 51... Rh3+ {[%clk 0:01:13.7]} 52. Rg3 {[%clk 0:02:50.2]}
52... Rh4 {[%clk 0:01:10.1]} 53. Rg4 {[%clk 0:02:48.7]} 53... Rh3+ {[%clk
0:01:06.4]} 54. Rg3 {[%clk 0:02:47.1]} 54... Rh4 {[%clk 0:01:03.8]} 55. Ke3
{[%clk 0:02:45.2]} 55... g4 {[%clk 0:00:49.5]} 56. Bg6 {[%clk 0:02:42.4]} 56...
Nf8 {[%clk 0:00:47.4]} 57. Be8 {[%clk 0:02:40.9]} 57... Kg5 {[%clk 0:00:42.6]}
58. Bc6 {[%clk 0:02:31.4]} 58... Nh7 {[%clk 0:00:40.3]} 59. Rg1 {[%clk
0:02:28.3]} 59... Nf6 {[%clk 0:00:38.5]} 60. Rf1 {[%clk 0:02:23.6]} 60... Rh3+
{[%clk 0:00:36.3]} 61. Ke2 {[%clk 0:02:21.2]} 61... Nxe4 {[%clk 0:00:31.7]} 62.
Rg1 {[%clk 0:02:19.7]} 62... Nf6 {[%clk 0:00:27.1]} 63. Bb7 {[%clk 0:02:17.2]}
63... Rh2+ {[%clk 0:00:23.9]} 64. Kd3 {[%clk 0:02:14.9]} 64... Rh3+ {[%clk
0:00:22.5]} 65. Kd2 {[%clk 0:02:13.5]} 65... Ra3 {[%clk 0:00:05.5]} 66. Bc8
{[%clk 0:02:10.4]} 66... Rxa4 {[%clk 0:00:03.8]} 67. Kc3 {[%clk 0:02:08.1]}
67... Ra3+ {[%clk 0:00:02.9]} 68. Kb2 {[%clk 0:02:06.8]} 68... Rf3 {[%clk
0:00:02.2]} 69. Be6 {[%clk 0:02:03.3]} 69... Rf4 {[%clk 0:00:00.9]} 70. Kb3
{[%clk 0:02:00.7]} 1-0

[Event "Live Chess"]
[Site "Chess.com"]
[Date "2024.06.02"]
[Round "-"]
[White "Mikhail_Golubev"]
[Black "Mangoalo"]
[Result "1-0"]
[WhiteElo "2520"]
[BlackElo "1066"]
[TimeControl "300"]
[EndTime "21:17:09 PDT"]
[Termination "Mikhail_Golubev won by resignation"]

1. e4 {[%clk 0:04:55.1]} 1... c5 {[%clk 0:04:57.8]} 2. Nf3 {[%clk 0:04:53.5]}
2... Nc6 {[%clk 0:04:57.1]} 3. Nc3 {[%clk 0:04:52]} 3... e5 {[%clk 0:04:55.1]}
4. Bc4 {[%clk 0:04:49.5]} 4... Nf6 {[%clk 0:04:54]} 5. Ng5 {[%clk 0:04:46.7]}
5... d5 {[%clk 0:04:48.1]} 6. exd5 {[%clk 0:04:20.9]} 6... Na5 {[%clk
0:04:43.2]} 7. Bb5+ {[%clk 0:04:17.1]} 7... Bd7 {[%clk 0:04:41.3]} 8. Qe2 {[%clk
0:04:08.8]} 8... a6 {[%clk 0:04:35.3]} 9. Qxe5+ {[%clk 0:03:57.9]} 9... Qe7
{[%clk 0:04:31.7]} 10. Bxd7+ {[%clk 0:03:48.2]} 10... Nxd7 {[%clk 0:04:29.1]}
11. Qxe7+ {[%clk 0:03:43.9]} 11... Bxe7 {[%clk 0:04:27.9]} 12. Nf3 {[%clk
0:03:27.6]} 12... O-O {[%clk 0:04:26.2]} 13. O-O {[%clk 0:03:24.5]} 13... Bd6
{[%clk 0:04:23.4]} 14. d3 {[%clk 0:03:18.1]} 14... b5 {[%clk 0:04:19.9]} 15. Ne4
{[%clk 0:03:16.5]} 15... Bc7 {[%clk 0:04:16.6]} 16. Be3 {[%clk 0:03:09.2]} 16...
f5 {[%clk 0:04:14.8]} 17. Nxc5 {[%clk 0:03:06.3]} 17... Nxc5 {[%clk 0:04:13.6]}
18. Bxc5 {[%clk 0:03:05.2]} 18... Rfe8 {[%clk 0:04:11.2]} 19. d6 {[%clk
0:03:00.3]} 19... Bd8 {[%clk 0:04:08.4]} 20. Rfe1 {[%clk 0:02:58]} 20... Rxe1+
{[%clk 0:04:05.5]} 21. Rxe1 {[%clk 0:02:56.6]} 21... Bf6 {[%clk 0:04:04.3]} 22.
d7 {[%clk 0:02:33.1]} 22... Nc6 {[%clk 0:04:01.1]} 23. Re8+ {[%clk 0:02:30.1]}
23... Kf7 {[%clk 0:03:56.9]} 24. Rxa8 {[%clk 0:02:27.1]} 24... Bxb2 {[%clk
0:03:50.3]} 25. Rc8 {[%clk 0:02:17.1]} 25... Bf6 {[%clk 0:03:47.4]} 26. Rxc6
{[%clk 0:02:14.8]} 26... Kg6 {[%clk 0:03:47.3]} 27. d8=Q {[%clk 0:02:08.4]} 1-0

[Event "Live Chess"]
[Site "Chess.com"]
[Date "2024.06.02"]
[Round "-"]
[White "juniortay"]
[Black "BostonStrangler"]
[Result "1-0"]
[WhiteElo "2449"]
[BlackElo "2114"]
[TimeControl "300"]
[EndTime "21:17:49 PDT"]
[Termination "juniortay won by resignation"]

1. e4 {[%clk 0:04:58]} 1... c5 {[%clk 0:04:58.5]} 2. Nf3 {[%clk 0:04:57.1]} 2...
g6 {[%clk 0:04:58.1]} 3. d4 {[%clk 0:04:56]} 3... cxd4 {[%clk 0:04:57.4]} 4. c3
{[%clk 0:04:55.5]} 4... d5 {[%clk 0:04:51.6]} 5. exd5 {[%clk 0:04:53.8]} 5...
Qxd5 {[%clk 0:04:48.1]} 6. cxd4 {[%clk 0:04:52.9]} 6... Nf6 {[%clk 0:04:40.4]}
7. Nc3 {[%clk 0:04:51.3]} 7... Qd8 {[%clk 0:04:37.5]} 8. Bc4 {[%clk 0:04:49.8]}
8... Bg7 {[%clk 0:04:36.1]} 9. O-O {[%clk 0:04:48.4]} 9... O-O {[%clk
0:04:35.1]} 10. Re1 {[%clk 0:04:47.7]} 10... Nc6 {[%clk 0:04:33.3]} 11. Be3
{[%clk 0:04:45]} 11... Na5 {[%clk 0:04:30.8]} 12. Bf1 {[%clk 0:04:41.5]} 12...
b6 {[%clk 0:04:29.4]} 13. Ne5 {[%clk 0:04:40.2]} 13... Bb7 {[%clk 0:04:27.3]}
14. Rc1 {[%clk 0:04:35.9]} 14... Rc8 {[%clk 0:04:25.3]} 15. Qa4 {[%clk
0:04:33.1]} 15... Nd5 {[%clk 0:04:21.9]} 16. Nxd5 {[%clk 0:04:22]} 16... Qxd5
{[%clk 0:04:14.3]} 17. a3 {[%clk 0:04:17.9]} 17... a6 {[%clk 0:02:52.4]} 18. Nd3
{[%clk 0:04:04.6]} 18... Nb3 {[%clk 0:02:40.9]} 19. Nf4 {[%clk 0:03:56.7]} 19...
Qe4 {[%clk 0:02:05.9]} 20. Qxb3 {[%clk 0:03:51.2]} 20... Rxc1 {[%clk 0:02:00.8]}
21. Rxc1 {[%clk 0:03:47.1]} 21... Bxd4 {[%clk 0:01:59.1]} 22. Qd3 {[%clk
0:02:53.8]} 22... Bxb2 {[%clk 0:01:47.4]} 23. Qxe4 {[%clk 0:02:48.5]} 23... Bxe4
{[%clk 0:01:43.6]} 24. Rc4 {[%clk 0:02:37]} 24... Bf5 {[%clk 0:01:15]} 25. Bxb6
{[%clk 0:02:21.6]} 25... Bxa3 {[%clk 0:01:08.4]} 26. Ra4 {[%clk 0:02:16]} 26...
Bd6 {[%clk 0:01:06.9]} 27. Nd5 {[%clk 0:02:03.4]} 27... Be6 {[%clk 0:00:59.1]}
28. Ne3 {[%clk 0:01:47.7]} 28... f5 {[%clk 0:00:51.2]} 29. Rxa6 {[%clk
0:01:44.9]} 29... Rb8 {[%clk 0:00:41.6]} 30. Bc4 {[%clk 0:01:30.9]} 30... Bxc4
{[%clk 0:00:33]} 31. Nxc4 {[%clk 0:01:30.8]} 31... Rc8 {[%clk 0:00:31.9]} 32.
Ra4 {[%clk 0:01:27.8]} 32... Rc6 {[%clk 0:00:19.4]} 33. Be3 {[%clk 0:01:22.9]}
33... e6 {[%clk 0:00:16.4]} 34. g3 {[%clk 0:01:21.5]} 34... Bc5 {[%clk
0:00:13.1]} 35. Bxc5 {[%clk 0:01:19.4]} 35... Rxc5 {[%clk 0:00:12.8]} 36. f4
{[%clk 0:01:18.9]} 36... e5 {[%clk 0:00:10.8]} 37. fxe5 {[%clk 0:01:17.9]} 1-0

[Event "Live Chess"]
[Site "Chess.com"]
[Date "2024.06.02"]
[Round "-"]
[White "booktrunk"]
[Black "Delacorta"]
[Result "1-0"]
[WhiteElo "1520"]
[BlackElo "1501"]
[TimeControl "300"]
[EndTime "21:17:57 PDT"]
[Termination "booktrunk won by resignation"]

1. d4 {[%clk 0:04:52.9]} 1... Nf6 {[%clk 0:04:55.3]} 2. Nc3 {[%clk 0:04:45.8]}
2... e6 {[%clk 0:04:45.2]} 3. Bf4 {[%clk 0:04:45.1]} 3... c6 {[%clk 0:04:41.2]}
4. e4 {[%clk 0:04:42.1]} 4... d5 {[%clk 0:04:35.5]} 5. e5 {[%clk 0:04:40.5]}
5... Ne4 {[%clk 0:04:26.2]} 6. Nxe4 {[%clk 0:04:38.1]} 6... dxe4 {[%clk
0:04:25.4]} 7. Qe2 {[%clk 0:04:35.7]} 7... Qxd4 {[%clk 0:04:23.2]} 8. c3 {[%clk
0:04:33.6]} 8... Qd3 {[%clk 0:04:09.3]} 9. Qxd3 {[%clk 0:04:29.6]} 9... exd3
{[%clk 0:04:08.5]} 10. Rd1 {[%clk 0:04:28.2]} 10... Bc5 {[%clk 0:03:50.4]} 11.
Rxd3 {[%clk 0:04:25.1]} 11... O-O {[%clk 0:03:49.1]} 12. Nf3 {[%clk 0:04:21.5]}
12... f6 {[%clk 0:03:36.7]} 13. exf6 {[%clk 0:04:18]} 13... gxf6 {[%clk
0:03:35.9]} 14. Be2 {[%clk 0:04:16.3]} 14... e5 {[%clk 0:03:34.8]} 15. Be3
{[%clk 0:04:11.6]} 15... Bxe3 {[%clk 0:03:27.2]} 16. Rxe3 {[%clk 0:04:10.2]}
16... Bf5 {[%clk 0:03:22]} 17. O-O {[%clk 0:04:05.2]} 17... Nd7 {[%clk
0:03:18.7]} 18. Nh4 {[%clk 0:04:03.8]} 18... Bg6 {[%clk 0:03:16.5]} 19. Nxg6
{[%clk 0:04:01.4]} 19... hxg6 {[%clk 0:03:15.5]} 20. f4 {[%clk 0:04:00.2]} 20...
Rad8 {[%clk 0:03:04.7]} 21. fxe5 {[%clk 0:03:58.4]} 21... Nxe5 {[%clk
0:03:02.4]} 22. Rb1 {[%clk 0:03:41]} 22... Rd2 {[%clk 0:02:55.1]} 23. Kf1 {[%clk
0:03:36.2]} 23... f5 {[%clk 0:02:40.8]} 24. Rxe5 {[%clk 0:03:33.3]} 1-0

[Event "Live Chess"]
[Site "Chess.com"]
[Date "2024.06.02"]
[Round "-"]
[White "Mangoalo"]
[Black "Winterowl"]
[Result "0-1"]
[WhiteElo "1065"]
[BlackElo "1567"]
[TimeControl "300"]
[EndTime "21:18:40 PDT"]
[Termination "Winterowl won by resignation"]

1. e4 {[%clk 0:04:58.7]} 1... c5 {[%clk 0:04:58.2]} 2. Nf3 {[%clk 0:04:58.6]}
2... d6 {[%clk 0:04:57.3]} 3. d4 {[%clk 0:04:56.7]} 3... cxd4 {[%clk 0:04:56.2]}
4. Nxd4 {[%clk 0:04:56.3]} 4... Nf6 {[%clk 0:04:55.3]} 5. Nc3 {[%clk 0:04:55.9]}
5... a6 {[%clk 0:04:54.5]} 6. f4 {[%clk 0:04:53.7]} 6... e6 {[%clk 0:04:52]} 7.
g4 {[%clk 0:04:47.5]} 7... Qb6 {[%clk 0:04:48.1]} 8. Be3 {[%clk 0:04:42.8]} 8...
Qxb2 {[%clk 0:04:45.8]} 9. Bd2 {[%clk 0:04:31]} 9... Qb6 {[%clk 0:04:35.9]} 10.
g5 {[%clk 0:04:20.7]} 10... Qxd4 {[%clk 0:04:32.6]} 11. gxf6 {[%clk 0:04:19.3]}
11... Qxf6 {[%clk 0:04:31.3]} 12. e5 {[%clk 0:04:17.9]} 12... dxe5 {[%clk
0:04:29.3]} 13. fxe5 {[%clk 0:04:17.8]} 13... Qxe5+ {[%clk 0:04:28.2]} 14. Qe2
{[%clk 0:04:17.3]} 14... Qxe2+ {[%clk 0:04:26.3]} 15. Bxe2 {[%clk 0:04:17.2]}
15... Bc5 {[%clk 0:04:24.5]} 0-1

[Event "Live Chess"]
[Site "Chess.com"]
[Date "2024.06.02"]
[Round "-"]
[White "NeilDruggan73"]
[Black "Dhaydon19"]
[Result "0-1"]
[WhiteElo "1758"]
[BlackElo "2673"]
[TimeControl "300"]
[EndTime "21:18:47 PDT"]
[Termination "Dhaydon19 won by resignation"]

1. d4 {[%clk 0:04:59.4]} 1... e6 {[%clk 0:04:57.1]} 2. Nf3 {[%clk 0:04:56.9]}
2... Nf6 {[%clk 0:04:56.4]} 3. c4 {[%clk 0:04:55.8]} 3... b6 {[%clk 0:04:55.8]}
4. Nc3 {[%clk 0:04:55]} 4... Bb7 {[%clk 0:04:55.4]} 5. e3 {[%clk 0:04:53.9]}
5... Be7 {[%clk 0:04:54.8]} 6. Bd3 {[%clk 0:04:53.1]} 6... O-O {[%clk
0:04:54.2]} 7. O-O {[%clk 0:04:51.4]} 7... d5 {[%clk 0:04:52.5]} 8. b3 {[%clk
0:04:49.2]} 8... dxc4 {[%clk 0:04:51.3]} 9. bxc4 {[%clk 0:04:47.6]} 9... Nbd7
{[%clk 0:04:50.9]} 10. Re1 {[%clk 0:04:44.8]} 10... c5 {[%clk 0:04:49.6]} 11. d5
{[%clk 0:04:36.6]} 11... exd5 {[%clk 0:04:48.2]} 12. cxd5 {[%clk 0:04:32.9]}
12... Bd6 {[%clk 0:04:46.9]} 13. e4 {[%clk 0:04:31.1]} 13... Re8 {[%clk
0:04:45.3]} 14. Bg5 {[%clk 0:04:27.1]} 14... a6 {[%clk 0:04:41.4]} 15. Qb3
{[%clk 0:04:16.7]} 15... b5 {[%clk 0:04:38.2]} 16. Qc2 {[%clk 0:04:06.4]} 16...
c4 {[%clk 0:04:35.4]} 17. Bf1 {[%clk 0:04:04.6]} 17... Qc7 {[%clk 0:04:33.5]}
18. g3 {[%clk 0:03:58.3]} 18... Rac8 {[%clk 0:04:29.3]} 19. Nd4 {[%clk
0:03:53.6]} 19... h6 {[%clk 0:04:24.2]} 20. Be3 {[%clk 0:03:51.9]} 20... Bc5
{[%clk 0:04:21.1]} 21. Rad1 {[%clk 0:03:47.5]} 21... Ne5 {[%clk 0:04:16.3]} 22.
Bf4 {[%clk 0:03:25.6]} 22... Bxd4 {[%clk 0:04:11.9]} 23. Rxd4 {[%clk 0:03:24]}
23... Nf3+ {[%clk 0:04:11]} 24. Kg2 {[%clk 0:03:19.6]} 24... Nxe1+ {[%clk
0:04:09.8]} 0-1

[Event "Live Chess"]
[Site "Chess.com"]
[Date "2024.06.02"]
[Round "-"]
[White "KeithArkell"]
[Black "RuslanChessN"]
[Result "1-0"]
[WhiteElo "2423"]
[BlackElo "1909"]
[TimeControl "300"]
[EndTime "21:20:40 PDT"]
[Termination "KeithArkell won on time"]

1. d4 {[%clk 0:04:57.6]} 1... d5 {[%clk 0:04:58.3]} 2. Nf3 {[%clk 0:04:56.3]}
2... Bf5 {[%clk 0:04:56.6]} 3. c4 {[%clk 0:04:56.1]} 3... e6 {[%clk 0:04:55.6]}
4. cxd5 {[%clk 0:04:55.3]} 4... exd5 {[%clk 0:04:54.5]} 5. Nc3 {[%clk
0:04:55.1]} 5... c6 {[%clk 0:04:53.1]} 6. Bg5 {[%clk 0:04:53.9]} 6... Be7 {[%clk
0:04:51.1]} 7. Bxe7 {[%clk 0:04:53.1]} 7... Qxe7 {[%clk 0:04:50.1]} 8. e3 {[%clk
0:04:53]} 8... Nf6 {[%clk 0:04:49]} 9. Bd3 {[%clk 0:04:52.5]} 9... Bg4 {[%clk
0:04:47.4]} 10. O-O {[%clk 0:04:50.7]} 10... O-O {[%clk 0:04:44.7]} 11. h3
{[%clk 0:04:50.1]} 11... Bh5 {[%clk 0:04:43.3]} 12. Be2 {[%clk 0:04:49.6]} 12...
Nbd7 {[%clk 0:04:41.2]} 13. Ne1 {[%clk 0:04:48.9]} 13... Bg6 {[%clk 0:04:39.4]}
14. Bd3 {[%clk 0:04:48]} 14... Ne4 {[%clk 0:04:24.1]} 15. Qc2 {[%clk 0:04:41.8]}
15... Ndf6 {[%clk 0:04:21.1]} 16. Nf3 {[%clk 0:04:39.3]} 16... Rac8 {[%clk
0:03:52.7]} 17. Nh4 {[%clk 0:04:37.1]} 17... Nd6 {[%clk 0:03:44.4]} 18. Nxg6
{[%clk 0:04:33.9]} 18... hxg6 {[%clk 0:03:43.3]} 19. b4 {[%clk 0:04:32]} 19...
a6 {[%clk 0:03:39.1]} 20. a4 {[%clk 0:04:30.5]} 20... Nc4 {[%clk 0:03:34.1]} 21.
Bxc4 {[%clk 0:04:29.9]} 21... dxc4 {[%clk 0:03:33]} 22. Rab1 {[%clk 0:04:29.5]}
22... b5 {[%clk 0:03:31.6]} 23. axb5 {[%clk 0:04:28.1]} 23... cxb5 {[%clk
0:03:30.6]} 24. e4 {[%clk 0:04:26]} 24... Qd7 {[%clk 0:03:21.2]} 25. d5 {[%clk
0:04:25]} 25... Rfe8 {[%clk 0:03:19.5]} 26. Rbd1 {[%clk 0:04:22.8]} 26... Qd6
{[%clk 0:03:16.3]} 27. Qb1 {[%clk 0:04:20.3]} 27... Qf4 {[%clk 0:03:01.7]} 28.
Rfe1 {[%clk 0:04:17.4]} 28... Nd7 {[%clk 0:02:58]} 29. Qc1 {[%clk 0:04:16]}
29... Qxc1 {[%clk 0:02:52.2]} 30. Rxc1 {[%clk 0:04:14.5]} 30... Ne5 {[%clk
0:02:50.9]} 31. Ra1 {[%clk 0:04:13]} 31... Ra8 {[%clk 0:02:48.4]} 32. Reb1
{[%clk 0:04:03.2]} 32... Nd3 {[%clk 0:02:40.3]} 33. f3 {[%clk 0:04:02.2]} 33...
f5 {[%clk 0:02:37.4]} 34. Kf1 {[%clk 0:03:59.9]} 34... fxe4 {[%clk 0:02:35]} 35.
Nxe4 {[%clk 0:03:58.8]} 35... Red8 {[%clk 0:01:57.9]} 36. d6 {[%clk 0:03:56.8]}
36... Kf7 {[%clk 0:01:56.7]} 37. Ke2 {[%clk 0:03:55.8]} 37... Ke6 {[%clk
0:01:55]} 38. Kd2 {[%clk 0:03:55]} 38... Kd5 {[%clk 0:01:53.1]} 39. Kc3 {[%clk
0:03:54.3]} 39... Ra7 {[%clk 0:01:18.4]} 40. Ra2 {[%clk 0:03:51.8]} 40... Rda8
{[%clk 0:01:16.8]} 41. Rba1 {[%clk 0:03:49.9]} 41... Kc6 {[%clk 0:01:13.2]} 42.
h4 {[%clk 0:03:45.2]} 42... Rh8 {[%clk 0:01:08.6]} 43. g3 {[%clk 0:03:42.9]}
43... Rha8 {[%clk 0:01:08]} 44. Rd2 {[%clk 0:03:33.6]} 44... a5 {[%clk
0:01:06.2]} 45. bxa5 {[%clk 0:03:32]} 45... Rxa5 {[%clk 0:01:05.1]} 46. Rxa5
{[%clk 0:03:31]} 46... Rxa5 {[%clk 0:01:04]} 47. Kd4 {[%clk 0:03:30.3]} 47...
Ra3 {[%clk 0:00:57.7]} 48. Rd1 {[%clk 0:03:19.2]} 48... Nb2 {[%clk 0:00:48.8]}
49. Nc3 {[%clk 0:03:10.5]} 49... b4 {[%clk 0:00:43.5]} 50. d7 {[%clk 0:03:07.9]}
50... Kxd7 {[%clk 0:00:37.6]} 51. Ke5+ {[%clk 0:03:01.9]} 51... Kc6 {[%clk
0:00:32.8]} 52. Rd6+ {[%clk 0:03:00.1]} 52... Kc5 {[%clk 0:00:31.3]} 53. Ne4+
{[%clk 0:02:58.1]} 53... Kb5 {[%clk 0:00:29.9]} 54. Rd8 {[%clk 0:02:49]} 54...
c3 {[%clk 0:00:27.8]} 55. Rb8+ {[%clk 0:02:45.4]} 55... Kc4 {[%clk 0:00:26.8]}
56. Nd6+ {[%clk 0:02:40]} 56... Kd3 {[%clk 0:00:25]} 57. Rxb4 {[%clk 0:02:38.6]}
57... c2 {[%clk 0:00:22.9]} 58. Rd4+ {[%clk 0:02:37.7]} 58... Ke2 {[%clk
0:00:21.1]} 59. Nc4 {[%clk 0:02:35.1]} 59... c1=Q {[%clk 0:00:16.3]} 60. Nxa3
{[%clk 0:02:33.7]} 60... Qc5+ {[%clk 0:00:14.1]} 61. Rd5 {[%clk 0:02:33.1]}
61... Qxa3 {[%clk 0:00:13.1]} 62. f4 {[%clk 0:02:31.2]} 62... Nd3+ {[%clk
0:00:12.2]} 63. Ke6 {[%clk 0:02:30.6]} 63... Qa6+ {[%clk 0:00:07.6]} 64. Rd6
{[%clk 0:02:30.2]} 64... Qc8+ {[%clk 0:00:06.8]} 65. Ke7 {[%clk 0:02:25.4]}
65... Nc5 {[%clk 0:00:06.2]} 66. f5 {[%clk 0:02:19.9]} 66... Qxf5 {[%clk
0:00:04.3]} 67. Rb6 {[%clk 0:02:17.3]} 67... Ne4 {[%clk 0:00:02]} 68. Rb2+
{[%clk 0:02:15.8]} 1-0